Cogmind - Beta 16 @@@ ROGUE MODE // 2025.10.22 @ 17:00:54 Player: mat Result: Destroyed by S-10 Pest with Light Assault Rifle Performance ------------- Evolutions (1) 500 Regions Visited (3) 600 Robots Destroyed (30) 150 Value Destroyed (845) 845 Prototype IDs (1) 20 Alien Tech Used (0) 0 Bonus (0) 0 TOTAL SCORE: 2115 Bonus ------- None Cogmind --------- Core Integrity 0/400 Matter 298/300 Energy 238/250 System Corruption 1% Temperature Warm (132) Movement Treading (240) Ox1 Location -9/Storage Parts ------- > --- POWER (1) -------- Ion Engine > --- PROPULSION (4) --- Light Treads Light Treads Light Treads > --- UTILITY (2) ------ Huge Storage Unit Core Shielding > --- WEAPON (2) ------- Compact Ion Cannon > --- INVENTORY (25) --- Improved Ion Engine Heat Sink Cooling System Medium Storage Unit High-capacity Battery (250) Compact Battery (200) Compact Battery (200) Compact Battery (200) Compact Battery (200) Hardened Light Armor Plating Hardened Light Armor Plating Authchip [R/Combat] Drone Bay (2/2) Drone Bay (2/2) Peak State ------------ > --- POWER ------------ Improved Ion Engine > --- PROPULSION ------- Carbon-fiber Leg Carbon-fiber Leg Carbon-fiber Leg Carbon-fiber Leg > --- UTILITY ---------- Heat Sink Huge Storage Unit > --- WEAPON ----------- Spread Laser Heavy Assault Rifle > --- INVENTORY -------- Ion Engine Aluminum Leg Aluminum Leg Cooling System Medium Storage Unit Compact Battery Compact Battery Compact Battery Compact Battery Drone Bay Drone Bay Small Laser Assault Rifle Light Assault Rifle [Rating: 23] Favorites ----------- Power Ion Engine Engine Ion Engine Propulsion Carbon-fiber Leg Treads Light Treads Leg Carbon-fiber Leg Utility Huge Storage Unit Device Heat Sink Storage Huge Storage Unit Protection Hardened Light Armor Plating Weapon Light Assault Rifle Energy Gun Small Laser Energy Cannon Compact Ion Cannon Ballistic Gun Light Assault Rifle Build | -11 -10 -9 -9 ------- Run | Yrd Mat Mat Sto Slots Evolved 2 | . . 2 . Power . | . . . . Propulsion 2 | . . 2 . Utility . | . . . . Weapon . | . . . . Parts Attached 28 | 6 2 8 12 Power 3 | 1 . 1 1 Engine 3 | 1 . 1 1 Core . | . . . . Reactor . | . . . . Propulsion 12 | 2 . 4 6 Treads 5 | . . . 5 Leg 7 | 2 . 4 1 Wheel . | . . . . Hover . | . . . . Flight . | . . . . Utility 7 | 1 2 1 3 Device 1 | . 1 . . Storage 3 | 1 1 1 . Processor . | . . . . Hackware . | . . . . Protection 3 | . . . 3 Artifact . | . . . . Weapon 6 | 2 . 2 2 Energy Gun 2 | . . 1 1 Energy Cannon 1 | . . . 1 Ballistic Gun 3 | 2 . 1 . Ballistic Cannon . | . . . . Launcher . | . . . . Special Weapon . | . . . . Impact Weapon . | . . . . Slashing Weapon . | . . . . Piercing Weapon . | . . . . Special Melee Weapon . | . . . . Unidentified Prototypes 1 | . . . 1 Parts Lost 12 | . . . 12 Power 1 | . . . 1 Propulsion 6 | . . . 6 Utility 1 | . . . 1 Weapon 4 | . . . 4 Highest Loss Streak 4 | . . . 4 To Critical Strikes . | . . . . Average Backups 11 | 1 1 7 13 Power . | . . . . Propulsion . | . . 1 . Utility 8 | . . 4 10 Weapon 1 | . 1 1 1 Tool/Special . | . . . . Unused Backups 10 | . . . 10 Power . | . . . . Propulsion . | . . . . Utility 10 | . . . 10 Weapon . | . . . . Tool/Special . | . . . . Average Slot Usage (%) 88 | . 91 94 86 Engine 11 | . 14 11 10 Treads 7 | . . . 9 Leg 25 | . 28 38 22 Device 4 | . 5 11 3 Storage 11 | . 14 11 11 Protection 5 | . . . 7 Energy Gun 7 | . . 4 8 Energy Cannon 2 | . . . 3 Ballistic Gun 12 | . 28 17 9 Peak Build Rating 23 | 6 7 22 23 Average Rating 15 | 3 6 16 17 On Entrance 8 | . 6 7 22 Avg Prop Armor Cover (%) . | . . . . Naked Turns . | . . . . Heaviest Build 95 | 13 19 94 95 Greatest Support 60 | 20 20 60 60 Greatest Overweight (x) 4 | . . 1 4 Average Overweight (x) 1 | . . . 1 Largest Inventory Capacity 25 | 8 10 25 25 Average Capacity 22 | 7 8 21 25 Most Carried 16 | 4 2 12 16 Average Carried 11 | 1 1 7 13 Final Capacity 25 | 8 10 25 25 Final Carried 14 | 1 1 12 14 Class Distribution -------------------- 100% | Mutant Dominant Class ---------------- Mutant | -10/Materials Mutant | -9/Materials Mutant | -9/Storage Resources | -11 -10 -9 -9 ----------- Run | Yrd Mat Mat Sto Matter Collected 938 | 195 94 122 527 Remotely . | . . . . Salvage Created 996 | . 94 122 780 Parts 62 | . 5 7 50 Haulers Intercepted . | . . . . Recyclers Shooed . | . . . . Parts Field Recycled . | . . . . Retrieved Matter . | . . . . Parts Self-Destructed . | . . . . Prevented . | . . . . Parts Restored . | . . . . Kills | -11 -10 -9 -9 ------- Run | Yrd Mat Mat Sto Combat Hostiles Destroyed 28 | . 2 3 23 Guns 20 | . 2 3 15 Cannons 8 | . . . 8 Classes Destroyed 4 | . 2 1 1 Operator 2 | . 1 . 1 Swarmer 9 | . . . 9 Grunt 12 | . 2 2 8 Sentry 7 | . . 1 6 Best Kill Streak 3 | . 2 3 3 Combat Bots Only 3 | . 2 3 3 Max Kills in Single Turn 1 | . 1 1 1 Gunslinging . | . . . . Exploded . | . . . . Melee . | . . . . Uniques/NPCs Destroyed . | . . . . Combat | -11 -10 -9 -9 -------- Run | Yrd Mat Mat Sto Hostile Shots Fired 235 | . 2 9 224 Missed 61 | . . 3 58 Hits 174 | . 2 6 166 Projectile 174 | . 2 6 166 Critical Strikes 4 | . . . 4 Damage Taken 2238 | . 21 80 2137 Core 413 | . 10 14 389 Absorbed by Shields . | . . . . Redirected to Shielding 3 | . . . 3 Core Remaining (%) 98 | 100 96 . . Volleys Fired 133 | . 6 7 120 Largest 2 | . 2 2 2 Hottest 130 | . 40 85 130 Shots Fired 226 | . 12 9 205 Gun 200 | . 12 9 179 Cannon 26 | . . . 26 Launcher . | . . . . Special . | . . . . Kinetic 153 | . 12 7 134 Thermal 73 | . . 2 71 Explosive . | . . . . Electromagnetic . | . . . . Robot Hit Streak 16 | . 5 9 16 Robot Miss Streak 10 | . 2 1 10 Penetration Max . | . . . . Secondary Targets . | . . . . Shots Hit Robots 155 | . 6 8 141 Core Hits 60 | . 5 9 46 Critical Kills . | . . . . Critical Parts Destroyed 1 | . . . 1 Critical Strikes 1 | . . . 1 Destroy 1 | . . . 1 Melee Attacks . | . . . . Impact . | . . . . Slashing . | . . . . Piercing . | . . . . Sneak Attacks . | . . . . Combat Hostiles . | . . . . Follow-up Attacks . | . . . . Damage Inflicted 2174 | . 72 119 1983 Guns 1680 | . 72 119 1489 Cannons 494 | . . . 494 Explosions . | . . . . Melee . | . . . . Ramming . | . . . . Kinetic 1284 | . 72 83 1129 Thermal 890 | . . 36 854 Explosive . | . . . . Electromagnetic . | . . . . Impact . | . . . . Slashing . | . . . . Piercing . | . . . . Highest Corruption 1 | . . . 1 Average Corruption 1 | . . . 1 Corruption Purged . | . . . . Corruption Blocked . | . . . . Effects 6 | . . . 6 Message Errors 1 | . . . 1 Matter Fused 2 | . . . 2 Heat Flow Errors 1 | . . . 1 Data Loss (minor) 1 | . . . 1 Data Loss (major) 1 | . . . 1 Overload Shots . | . . . . Overflow Damage 36 | . . . 36 Projectiles 36 | . . . 36 Explosions . | . . . . Melee . | . . . . Knockbacks . | . . . . Impact . | . . . . Kinetic . | . . . . Secondary . | . . . . Self-Inflicted Damage . | . . . . Shots . | . . . . Rammed . | . . . . Targets Rammed . | . . . . Kicked . | . . . . Crushed . | . . . . Highest Temperature 437 | . . 1 437 Average Temperature 128 | . . 1 128 Received Heat Transfer 609 | . 12 24 573 Effects 10 | . . . 10 Shutdowns 1 | . . . 1 Interference 5 | . . . 5 Matter Decay 1 | . . . 1 Short Circuit 1 | . . . 1 Damage (minor) 2 | . . . 2 Siege Activations . | . . . . Martial Activations . | . . . . Shielding Activations . | . . . . Robots Disrupted . | . . . . Combat Hostiles . | . . . . Robots Corrupted . | . . . . Combat Hostiles . | . . . . Parts Fried . | . . . . Impact Corruptions . | . . . . Robots Melted . | . . . . Combat Hostiles . | . . . . Parts Melted 1 | . . . 1 Heat Transferred 1461 | . . 50 1411 Parts Sabotaged . | . . . . Parts Stolen . | . . . . Parts Stripped . | . . . . Power Chain Reactions . | . . . . Alert | -11 -10 -9 -9 ------- Run | Yrd Mat Mat Sto Maximum Alert Level . | . . . . Low Security (%) 100 | 100 100 100 100 Level 1 . | . . . . Level 2 . | . . . . Level 3 . | . . . . Level 4 . | . . . . Level 5 . | . . . . High Security . | . . . . Max Security . | . . . . Peak Influence 191 | . 40 60 191 Initial 20 | . . 8 20 Average 66 | . 15 12 84 Influence Increases 837 | . 55 80 702 Destroy 0b10 Robot/C 560 | . 40 60 460 Destroy 0b10 Robot/NC 10 | . 5 . 5 Destroy Leader 150 | . 10 20 120 Successful Hack 16 | . . . 16 Destroy Structure 11 | . . . 11 Lose Combat Pursuer 90 | . . . 90 Influence Decreases 660 | . 35 50 575 Entered New Map 42 | . . 12 30 Time Decay 518 | . 35 38 445 Lost Part 100 | . . . 100 Squads Dispatched 6 | . 1 2 3 Investigation 2 | . . 1 1 Extermination . | . . . . Reinforcement 4 | . 1 1 2 Assault . | . . . . Garrison . | . . . . Intercept . | . . . . Searches Triggered . | . . . . Construction Impeded . | . . . . Haulers Reinforced . | . . . . Active Scanning Responses . | . . . . Cargo Convoy Interrupts . | . . . . Stealth | -11 -10 -9 -9 --------- Run | Yrd Mat Mat Sto Distress Signals 5 | . . . 5 Communications Jammed . | . . . . Distress Signals . | . . . . Times Spotted 46 | . 2 4 40 Peak Tracking Total 5 | . 1 2 5 Tactical Retreats 4 | . . . 4 Traps | -11 -10 -9 -9 ------- Run | Yrd Mat Mat Sto Traps Triggered 4 | . . . 4 Indirectly . | . . . . Trap Hack Attempts . | . . . . Triggered . | . . . . Disarmed . | . . . . Reprogrammed . | . . . . Reused . | . . . . Traps Extracted . | . . . . Installed . | . . . . Triggered . | . . . . Machines | -11 -10 -9 -9 ---------- Run | Yrd Mat Mat Sto Machines Disabled . | . . . . Max in Single Turn . | . . . . Machines Repaired . | . . . . Machines Dismantled . | . . . . Machines Sabotaged . | . . . . Overloaded Fab Kills . | . . . . Hacking | -11 -10 -9 -9 --------- Run | Yrd Mat Mat Sto Machines Accessed 4 | . . 1 3 Terminals 4 | . . 1 3 Fabricators . | . . . . Repair Stations . | . . . . Recycling Units . | . . . . Scanalyzers . | . . . . Garrison Access . | . . . . Total Hacks 8 | . . 2 6 Successful 3 | . . . 3 Failed 5 | . . 2 3 Catastrophic . | . . . . Database Lockouts . | . . . . Manual . | . . . . Terminals 8 | . . 2 6 Fabricators . | . . . . Repair Stations . | . . . . Recycling Units . | . . . . Scanalyzers . | . . . . Garrison Access . | . . . . Terminal Hacks 3 | . . . 3 Open Door 3 | . . . 3 Fabricator Hacks . | . . . . Repair Station Hacks . | . . . . Recycling Unit Hacks . | . . . . Scanalyzer . | . . . . Garrison Access Hacks . | . . . . Unauthorized Hacks . | . . . . Terminals . | . . . . Fabricators . | . . . . Repair Stations . | . . . . Recycling Units . | . . . . Scanalyzers . | . . . . Garrison Access . | . . . . Data Cores Recovered . | . . . . Used . | . . . . Hacking Detections 2 | . . 1 1 Full Trace Events 2 | . . 1 1 Feedback Events . | . . . . Feedback Blocked . | . . . . Robot Schematics Acquired . | . . . . Robots Built . | . . . . Authchips . | . . . . Time . | . . . . Total Robot Build Rating . | . . . . Part Schematics Acquired . | . . . . Parts Built . | . . . . Authchips . | . . . . Time . | . . . . Total Part Build Rating . | . . . . Part Studies Acquired . | . . . . Parts Repaired . | . . . . Time . | . . . . Parts Recycled . | . . . . Recycled Matter . | . . . . Retrieved Matter . | . . . . Retrieved Components . | . . . . Parts Scanalyzed . | . . . . Part Schematics Acquired . | . . . . Parts Damaged . | . . . . Bothacking | -11 -10 -9 -9 ------------ Run | Yrd Mat Mat Sto Used RIF Installer . | . . . . Robots Hacked . | . . . . Non-combat . | . . . . Combat . | . . . . Robot Hacks Applied . | . . . . Relay Couplers Released . | . . . . Fabnet Peak Effective % . | . . . . Robots Rewired . | . . . . Allies Hacked . | . . . . Hacks Repelled . | . . . . Allies | -11 -10 -9 -9 -------- Run | Yrd Mat Mat Sto Total Allies . | . . . . Largest Group . | . . . . Highest-Rated Group . | . . . . Highest-Rated Ally . | . . . . Total Orders . | . . . . Ally Attacks . | . . . . Total Damage . | . . . . Kills . | . . . . Allies Corrupted . | . . . . Allies Melted . | . . . . Intel | -11 -10 -9 -9 ------- Run | Yrd Mat Mat Sto Active Infowar (turns) . | . . . . Robot Analysis Total . | . . . . Derelict Logs Recovered . | . . . . Drone Launches . | . . . . Drone Recoveries . | . . . . Exploration | -11 -10 -9 -9 ------------- Run | Yrd Mat Mat Sto Turns Passed 1727 | 68 119 239 1301 Spaces Moved 622 | 46 82 116 378 Core 7 | 7 . . . Treads 150 | . . . 150 Legs 465 | 39 82 116 228 Wheels . | . . . . Hover . | . . . . Flight . | . . . . Fastest Speed 50 | 50 120 120 190 Average Speed 204 | 109 120 168 245 Slowest Speed 480 | 120 120 190 480 Overloaded Moves . | . . . . Propulsion Burnouts . | . . . . Robots Hopped . | . . . . Potential Cave-ins . | . . . . Cave-ins Triggered . | . . . . Exploration Rate (%) 28 | 4 26 15 68 Regions Visited 3 Branch Regions 1 Pre-discovered Areas . | . . . . Known Exits Taken . | . . . . Unknown Exits Taken 3 | 1 1 1 . Scrap Searched . | . . . . Spaces Dug . | . . . . Terrain Destroyed 8 | . . . 8 Melee . | . . . . Projectile 8 | . . . 8 AOE . | . . . . Terrain Rammed . | . . . . Walls Destroyed . | . . . . Machines Disabled . | . . . . Actions | -11 -10 -9 -9 --------- Run | Yrd Mat Mat Sto Total 859 | 63 92 147 557 Wait 23 | 5 . 2 16 Move 619 | 45 81 115 378 Hop . | . . . . Pick Up 38 | 7 2 13 16 Fast Attach . | . . . . Attach 24 | 6 1 2 15 Detach 1 | . . . 1 Swap 16 | . 1 8 7 Drop 5 | . 1 . 4 Fire 133 | . 6 7 120 Melee . | . . . . Ram . | . . . . Kick . | . . . . Crush . | . . . . Escape Stasis . | . . . . Rewire . | . . . . Trap . | . . . . Miscellaneous . | . . . . Route ------- -11/Scrapyard -10/Materials -9/Materials -9/Storage History --------- Turn | Location | Event 22 | -11/Scrapyard | Discovered new exit (range 16) 69 | -11/Scrapyard | Entered Materials 170 | -10/Materials | Discovered new exit (range 16) 188 | -10/Materials | Entered another Materials area 188 | -9/Materials | Evolved 2 slots: Propulsion x2 303 | -9/Materials | Build established: Mutant 361 | -9/Materials | Discovered new exit (range 7) 427 | -9/Materials | Entered Storage 1010 | -9/Storage | Core integrity fell below 50% 1319 | -9/Storage | Core integrity fell below 20% 1379 | -9/Storage | Lost 4 parts (1n3w) 1728 | -9/Storage | Destroyed by S-10 Pest with Light Assault Rifle Last Messages --------------- K-01 Serf collects debris. System corrupted: Matter fused (-7). K-01 Serf collects debris. R-06 Scavenger collects Flight Unit. K-01 Serf collects debris. U-05 Engineer builds a Wall. R-06 Scavenger collects Heat Sink. K-01 Serf collects debris. Sml. Laser destroyed. U-05 Engineer builds a Wall. U-05 Engineer lays Concrete. S-10 Pest destroyed. K-01 Serf collects debris. S-10 Pest destroyed. K-01 Serf collects debris. U-05 Engineer builds a Door. K-01 Serf collects debris. S-10 Pest destroyed. R-06 Scavenger collects Flight Unit. K-01 Serf collects debris. Map ----- +----------------------------------------------------+ | ??? =#%"???"" # """" | | ?? = / ""???" # """" ## | | ???? *#= ""??" # """" =!! ##? | | ????????# # """" + = #?? | | ????????# # # ! ### | | ????????# % %########### # | | ??????" + ##### #####+#?????????# + | | ????????# #???# #??? * !????????#+## ##### | | ????????# #???# #??? ??????????####### #???##T | | ????????# #???# #?? [= #???????????????# #?????# | | ????????# #####/##? ! #???????????????# #?????? | | ????????# # !% ## #???????????????# #?????? | | #?#####?# #= * ## #?????????####### ####### | | #?# ### # =! #####+###???# / | | #?# %+ ! #???? ??????????" # | | ### ### # #???? ????????????????# | | T### ##?# # #???? ????????????????########### | | #### ##?# ########???????????????????????????????? | | % ##?# #??????????#+#######???????????????????? | | ##?# #??????????# +???????????????????? | | #??# #??????????# #???????????????????? | | ####+#??????????# r #####???????????????? | | ""#T #??????????# sk ????????? | | ""## #??????????# *%### ????????? | | T"## #??????????# %%#???????? ????????? | | ""####??????????# k@#??????????????????????? | | ""#?????????????# #??????????????????????? | | ###????????????## #??????????????????????? | | ################ # #??????????????????????? | | % k #%##?????????????????????? | | ######## ######### # #?????????????????????? | | # # ####???###+##k #?????????????????????? | | + + #????### u% ##????????????????????? | | #/ !####+###??#"" " "#????????????????????? | | # ! #?# T#??#"T " " T"#????????????????????? | | # #?#" "##??#"" """ ""#????????????????????# | | # %[ #?#! !#???### ###????????????????????# | | ########?#!!!#?????# #??????????????????????# | | #????????#####?????##"Y"###??????????????????????# | | #???????????????????#"""?????????????????????????# | | #???????????????????####?????????????????????????? | | ##???????????????????????????????????????????????? | | #???????????????????????????????????????????????? | | #???????????????????????????????????????????????? | | #???????????????????????????????????????????????? | | ##???????????????????????????????????????????????? | | ^ ???????????????????????????????????????????????? | | "" "?????????????????????????????????????????????? | | "" T"#???????????????????????????????????????????? | | "" ""#???????????????????????????????????????????? | +----------------------------------------------------+ Best States ------------- Heat Dissipation 38 Energy Generation 12 Energy Capacity 265 Matter Stores 300 Matter Capacity 300 Sight Range 16 Terrain Scan Density 10 Armor Coverage 150 Core Shielding 20 Evasion (%) 55 Recoil Reduction 3 Authchip Count 1 Item Schematics ----------------- None Robot Schematics ------------------ None Fabricated ------------ Nothing Repaired ---------- Nothing Studied --------- None Alien Tech Used ----------------- None Achievements -------------- DATA ERROR: Steam Global Achievement% Ghost 'Em I Have A Map? Organ Harvest There's More Where That Came From Challenges ------------ None Game ------ Seed SapperSurveybotStorage Manual? 0 Play Time 00:22:43 Cumulative 137.0 hours Start 2025.10.22 @ 16:36:58 End 2025.10.22 @ 17:00:54 Sessions 1 Manual Loads 0 Difficulty Rogue Special Mode None Game No. 214 Rogue 212 Adventurer 2 Explorer 0 Win Type - Total 1 Types 1/0/0/0/0/0/0/0/0/0 Lore% 31 Gallery% 42 Achievement% 26 Wizard Run 0 Options --------- Layout 1 ASCII 0 Keyboard 0 Movement Mouse Keybinds 0 Fullscreen 1 Font 24/Smallcaps Map View 50x35 Zoom Use 0% Tactical HUD 0 Map Filters NONE Filters NONE Steam 1 RUN: 56dc9469-2979-4e4a-9a32-8e8f654f4eea